[Event "*** Titled Tuesday Blitz"]
[Site "Chess.com"]
[Date "2020.04.28"]
[Round "6"]
[White "Bacyanide"]
[Black "Bathory44"]
[Result "0-1"]
[WhiteElo "2397"]
[BlackElo "2573"]
[TimeControl "180+1"]
[EndTime "11:07:40 PDT"]
[Termination "Bathory44 won by checkmate"]

1. d4 {[%clk 0:03:00.9]} 1... Nf6 {[%clk 0:02:59.5]} 2. Nf3 {[%clk 0:03:01.2]}
2... g6 {[%clk 0:02:59.9]} 3. c4 {[%clk 0:02:58.4]} 3... Bg7 {[%clk 0:03:00.2]}
4. g3 {[%clk 0:02:58.8]} 4... O-O {[%clk 0:03:00.5]} 5. Bg2 {[%clk 0:02:59.7]}
5... d6 {[%clk 0:03:01]} 6. O-O {[%clk 0:03:00.2]} 6... c5 {[%clk 0:03:01.5]} 7.
d5 {[%clk 0:02:50.7]} 7... e6 {[%clk 0:03:00.6]} 8. Nc3 {[%clk 0:02:49.8]} 8...
exd5 {[%clk 0:03:00.6]} 9. cxd5 {[%clk 0:02:50.7]} 9... Re8 {[%clk 0:02:57.8]}
10. Re1 {[%clk 0:02:37.7]} 10... Na6 {[%clk 0:02:56.4]} 11. a3 {[%clk
0:02:32.9]} 11... Nc7 {[%clk 0:02:54]} 12. e4 {[%clk 0:02:30.8]} 12... Bg4
{[%clk 0:02:50.6]} 13. h3 {[%clk 0:02:29.8]} 13... Bxf3 {[%clk 0:02:49.8]} 14.
Bxf3 {[%clk 0:02:28.7]} 14... Rb8 {[%clk 0:02:46.4]} 15. Bg2 {[%clk 0:02:26.3]}
15... b5 {[%clk 0:02:46.3]} 16. Kh2 {[%clk 0:02:15.9]} 16... Nd7 {[%clk
0:02:40.5]} 17. f4 {[%clk 0:02:12.6]} 17... h5 {[%clk 0:02:35.6]} 18. Be3 {[%clk
0:01:56.1]} 18... b4 {[%clk 0:02:28.7]} 19. axb4 {[%clk 0:01:55.7]} 19... Rxb4
{[%clk 0:02:29.2]} 20. Qc2 {[%clk 0:01:45.7]} 20... Qb8 {[%clk 0:02:28.5]} 21.
Ra2 {[%clk 0:01:44.1]} 21... Nb5 {[%clk 0:02:21.1]} 22. Nxb5 {[%clk 0:01:42.7]}
22... Rxb5 {[%clk 0:02:18.8]} 23. Re2 {[%clk 0:01:28.1]} 23... Rb3 {[%clk
0:01:59.5]} 24. Bc1 {[%clk 0:01:26.1]} 24... Bd4 {[%clk 0:01:47.1]} 25. Ra6
{[%clk 0:01:22.2]} 25... Nf6 {[%clk 0:01:21.2]} 26. Rxa7 {[%clk 0:01:17.6]}
26... Rxg3 {[%clk 0:01:19]} 27. Rxf7 {[%clk 0:01:08]} 27... Rxg2+ {[%clk
0:01:17.8]} 28. Rxg2 {[%clk 0:01:08]} 28... Kxf7 {[%clk 0:01:16.7]} 29. e5
{[%clk 0:01:08.4]} 29... Rg8 {[%clk 0:01:12.2]} 30. exf6 {[%clk 0:01:06.4]}
30... Bxf6 {[%clk 0:01:13.1]} 31. f5 {[%clk 0:01:06.7]} 31... g5 {[%clk
0:01:08.7]} 32. Qe2 {[%clk 0:00:59.2]} 32... Be5+ {[%clk 0:01:01.6]} 33. Kh1
{[%clk 0:00:59.4]} 33... Qd8 {[%clk 0:00:49.9]} 34. Qxh5+ {[%clk 0:00:58.3]}
34... Kf8 {[%clk 0:00:27.9]} 35. Bxg5 {[%clk 0:00:57.9]} 35... Qa5 {[%clk
0:00:15.8]} 36. Qh6+ {[%clk 0:00:40.7]} 36... Rg7 {[%clk 0:00:10.2]} 37. Be7+
{[%clk 0:00:18.5]} 37... Kxe7 {[%clk 0:00:07.2]} 38. Rxg7+ {[%clk 0:00:18.5]}
38... Bxg7 {[%clk 0:00:07.4]} 39. Qxg7+ {[%clk 0:00:19.4]} 39... Kd8 {[%clk
0:00:08]} 40. Qf6+ {[%clk 0:00:17.5]} 40... Kc7 {[%clk 0:00:07.8]} 41. Qe7+
{[%clk 0:00:17.5]} 41... Kc8 {[%clk 0:00:08.2]} 42. Qe6+ {[%clk 0:00:17.8]}
42... Kc7 {[%clk 0:00:08.5]} 43. f6 {[%clk 0:00:15.6]} 43... Qa1+ {[%clk
0:00:07.4]} 44. Kg2 {[%clk 0:00:15.9]} 44... Qxb2+ {[%clk 0:00:07.9]} 45. Kg3
{[%clk 0:00:16.3]} 45... Qc3+ {[%clk 0:00:08.4]} 46. Kg4 {[%clk 0:00:16.6]}
46... Qd4+ {[%clk 0:00:08.1]} 47. Kg5 {[%clk 0:00:16.8]} 47... Qd2+ {[%clk
0:00:08.3]} 48. Kg6 {[%clk 0:00:16.9]} 48... Qd3+ {[%clk 0:00:08.5]} 49. Kg7
{[%clk 0:00:17.2]} 49... Qg3+ {[%clk 0:00:08.7]} 50. Kf8 {[%clk 0:00:17.1]}
50... Qh4 {[%clk 0:00:08.2]} 51. f7 {[%clk 0:00:16.8]} 51... Qh8+ {[%clk
0:00:07.6]} 52. Ke7 {[%clk 0:00:14.1]} 52... Qd8# {[%clk 0:00:08.5]} 0-1

[Event "*** Titled Tuesday Blitz"]
[Site "Chess.com"]
[Date "2020.04.28"]
[Round "6"]
[White "Grischuk"]
[Black "ChessQueen"]
[Result "1-0"]
[WhiteElo "3110"]
[BlackElo "2732"]
[TimeControl "180+1"]
[EndTime "11:07:42 PDT"]
[Termination "Grischuk won by resignation"]

1. Nf3 {[%clk 0:03:00.9]} 1... Nf6 {[%clk 0:02:59.8]} 2. g3 {[%clk 0:03:00.4]}
2... b6 {[%clk 0:03:00]} 3. d4 {[%clk 0:03:00.3]} 3... e6 {[%clk 0:02:59.2]} 4.
c4 {[%clk 0:03:00.3]} 4... Bb7 {[%clk 0:02:59.4]} 5. Bg2 {[%clk 0:03:00.8]} 5...
Be7 {[%clk 0:02:59.9]} 6. Nc3 {[%clk 0:03:00.4]} 6... O-O {[%clk 0:02:57.4]} 7.
Qc2 {[%clk 0:03:00.5]} 7... c5 {[%clk 0:02:54.9]} 8. d5 {[%clk 0:02:59.9]} 8...
exd5 {[%clk 0:02:52.4]} 9. Ng5 {[%clk 0:03:00.1]} 9... Na6 {[%clk 0:02:35.2]}
10. Nxd5 {[%clk 0:02:38.9]} 10... Bxd5 {[%clk 0:02:32.4]} 11. cxd5 {[%clk
0:02:39.4]} 11... d6 {[%clk 0:02:27.9]} 12. a3 {[%clk 0:02:25.9]} 12... Nc7
{[%clk 0:02:25.9]} 13. h4 {[%clk 0:02:12.4]} 13... h6 {[%clk 0:02:13.1]} 14. Bd2
{[%clk 0:02:11.9]} 14... Nb5 {[%clk 0:01:52.5]} 15. e3 {[%clk 0:02:09.9]} 15...
Re8 {[%clk 0:01:38.7]} 16. a4 {[%clk 0:02:05.5]} 16... Nc7 {[%clk 0:01:38.7]}
17. Bc3 {[%clk 0:02:05.4]} 17... g6 {[%clk 0:01:39.2]} 18. Ne6 {[%clk 0:01:34]}
18... Qd7 {[%clk 0:01:27.6]} 19. Nf4 {[%clk 0:01:31.7]} 19... Qg4 {[%clk
0:01:06]} 20. Rd1 {[%clk 0:01:23.5]} 20... Nh5 {[%clk 0:00:45.4]} 21. Nxh5
{[%clk 0:00:47.4]} 21... Qxh5 {[%clk 0:00:46.3]} 22. Qe2 {[%clk 0:00:36.1]}
22... Qxe2+ {[%clk 0:00:44.6]} 23. Kxe2 {[%clk 0:00:37]} 23... Bf8 {[%clk
0:00:44]} 24. f4 {[%clk 0:00:30.4]} 24... h5 {[%clk 0:00:40.9]} 25. g4 {[%clk
0:00:28.7]} 25... Bg7 {[%clk 0:00:27]} 26. gxh5 {[%clk 0:00:27.4]} 26... gxh5
{[%clk 0:00:27.3]} 27. Bf3 {[%clk 0:00:25.2]} 27... Bxc3 {[%clk 0:00:21.8]} 28.
bxc3 {[%clk 0:00:26.1]} 28... Kf8 {[%clk 0:00:19.1]} 29. Rb1 {[%clk 0:00:19.1]}
29... Re7 {[%clk 0:00:18.1]} 30. Kd2 {[%clk 0:00:18.1]} 30... Rae8 {[%clk
0:00:18.1]} 31. Rhe1 {[%clk 0:00:14.6]} 31... Re4 {[%clk 0:00:18.4]} 32. Bxe4
{[%clk 0:00:11.4]} 32... Rxe4 {[%clk 0:00:19.3]} 33. Kd3 {[%clk 0:00:08]} 33...
f5 {[%clk 0:00:15.5]} 34. c4 {[%clk 0:00:07.1]} 34... Na6 {[%clk 0:00:15.8]} 35.
a5 {[%clk 0:00:06.5]} 35... Nb4+ {[%clk 0:00:15.8]} 36. Rxb4 {[%clk 0:00:06.9]}
36... cxb4 {[%clk 0:00:15.7]} 37. axb6 {[%clk 0:00:07.8]} 37... axb6 {[%clk
0:00:16.3]} 38. Rb1 {[%clk 0:00:08.7]} 38... Re7 {[%clk 0:00:12.4]} 39. Rxb4
{[%clk 0:00:08.6]} 39... Rb7 {[%clk 0:00:13.3]} 40. Rb1 {[%clk 0:00:05.2]} 40...
Kf7 {[%clk 0:00:13]} 41. Kc3 {[%clk 0:00:05.5]} 41... Kf6 {[%clk 0:00:11.3]} 42.
Kb4 {[%clk 0:00:05]} 42... Re7 {[%clk 0:00:11.3]} 43. Rb3 {[%clk 0:00:05]} 43...
Rg7 {[%clk 0:00:11.5]} 44. Kb5 {[%clk 0:00:04.7]} 44... Rg4 {[%clk 0:00:12]} 45.
Kc6 {[%clk 0:00:04.5]} 45... Rxh4 {[%clk 0:00:12.1]} 46. Kxd6 {[%clk 0:00:05]}
46... Rh1 {[%clk 0:00:12.2]} 47. Kc7 {[%clk 0:00:04.8]} 47... h4 {[%clk
0:00:11.8]} 48. Rxb6+ {[%clk 0:00:04.9]} 48... Kg7 {[%clk 0:00:11.4]} 49. d6
{[%clk 0:00:04.3]} 49... h3 {[%clk 0:00:11.9]} 50. d7 {[%clk 0:00:04.1]} 50...
Rd1 {[%clk 0:00:09.5]} 51. d8=Q {[%clk 0:00:05]} 1-0

[Event "*** Titled Tuesday Blitz"]
[Site "Chess.com"]
[Date "2020.04.28"]
[Round "6"]
[White "Gubajdullin"]
[Black "GiorgianBarbosa"]
[Result "1-0"]
[WhiteElo "2487"]
[BlackElo "2310"]
[TimeControl "180+1"]
[EndTime "11:07:43 PDT"]
[Termination "Gubajdullin won on time"]

1. d4 {[%clk 0:03:00.7]} 1... Nf6 {[%clk 0:02:59.4]} 2. Bf4 {[%clk 0:03:00.9]}
2... g6 {[%clk 0:02:57.5]} 3. e3 {[%clk 0:03:00.4]} 3... Bg7 {[%clk 0:02:58.1]}
4. Nf3 {[%clk 0:02:59.2]} 4... O-O {[%clk 0:02:58.7]} 5. Be2 {[%clk 0:02:59.5]}
5... d5 {[%clk 0:02:59]} 6. O-O {[%clk 0:02:59]} 6... c5 {[%clk 0:02:59.5]} 7.
c3 {[%clk 0:02:58.5]} 7... b6 {[%clk 0:02:59.8]} 8. a4 {[%clk 0:02:57]} 8... Nc6
{[%clk 0:02:59.4]} 9. Ne5 {[%clk 0:02:57.1]} 9... Bb7 {[%clk 0:02:59.1]} 10.
Nxc6 {[%clk 0:02:55.1]} 10... Bxc6 {[%clk 0:03:00]} 11. Be5 {[%clk 0:02:54.8]}
11... Nd7 {[%clk 0:02:56.6]} 12. Bxg7 {[%clk 0:02:54.1]} 12... Kxg7 {[%clk
0:02:57.5]} 13. a5 {[%clk 0:02:54.4]} 13... e5 {[%clk 0:02:55.9]} 14. dxe5
{[%clk 0:02:28]} 14... Nxe5 {[%clk 0:02:55]} 15. Nd2 {[%clk 0:02:28.1]} 15...
Qe7 {[%clk 0:02:48.8]} 16. Nf3 {[%clk 0:02:24.9]} 16... Rfd8 {[%clk 0:02:43.7]}
17. Nxe5 {[%clk 0:02:24]} 17... Qxe5 {[%clk 0:02:44.6]} 18. Bf3 {[%clk
0:02:24.1]} 18... b5 {[%clk 0:02:32.5]} 19. Qd2 {[%clk 0:02:14.9]} 19... Rab8
{[%clk 0:02:30.7]} 20. b4 {[%clk 0:02:13.7]} 20... cxb4 {[%clk 0:01:53.1]} 21.
cxb4 {[%clk 0:02:06.6]} 21... Rbc8 {[%clk 0:01:51.9]} 22. Rac1 {[%clk
0:01:52.7]} 22... Bb7 {[%clk 0:01:40.4]} 23. Rc5 {[%clk 0:01:37.8]} 23... Rxc5
{[%clk 0:01:32.9]} 24. bxc5 {[%clk 0:01:37]} 24... Bc6 {[%clk 0:01:14.8]} 25.
Rb1 {[%clk 0:01:14.2]} 25... h5 {[%clk 0:01:09.4]} 26. a6 {[%clk 0:01:11.6]}
26... Rb8 {[%clk 0:00:54.7]} 27. Qb4 {[%clk 0:00:46.1]} 27... h4 {[%clk
0:00:48.2]} 28. Qxh4 {[%clk 0:00:39.9]} 28... b4 {[%clk 0:00:48.5]} 29. Qd4
{[%clk 0:00:30.4]} 29... Qxd4 {[%clk 0:00:35.9]} 30. exd4 {[%clk 0:00:29.6]}
30... b3 {[%clk 0:00:36.2]} 31. Kf1 {[%clk 0:00:28.2]} 31... b2 {[%clk
0:00:31.1]} 32. Ke1 {[%clk 0:00:26.2]} 32... Bd7 {[%clk 0:00:25.1]} 33. g4
{[%clk 0:00:22.3]} 33... f5 {[%clk 0:00:19.5]} 34. Kd2 {[%clk 0:00:16.3]} 34...
fxg4 {[%clk 0:00:10.7]} 35. Be2 {[%clk 0:00:16.1]} 35... Rb4 {[%clk 0:00:09]}
36. Kc3 {[%clk 0:00:15.3]} 36... Ra4 {[%clk 0:00:09.3]} 37. Rxb2 {[%clk
0:00:15]} 37... Bf5 {[%clk 0:00:08.5]} 38. Rb7+ {[%clk 0:00:13.6]} 38... Kf6
{[%clk 0:00:09.1]} 39. Rxa7 {[%clk 0:00:13.6]} 39... Ra3+ {[%clk 0:00:09.6]} 40.
Kb4 {[%clk 0:00:13.2]} 40... Ra2 {[%clk 0:00:10]} 41. Bb5 {[%clk 0:00:12.1]}
41... Rb2+ {[%clk 0:00:08.4]} 42. Ka5 {[%clk 0:00:11]} 42... Ra2+ {[%clk
0:00:08.2]} 43. Kb6 {[%clk 0:00:10.2]} 43... Rb2 {[%clk 0:00:08.8]} 44. Rb7
{[%clk 0:00:09.3]} 44... Rxf2 {[%clk 0:00:07.1]} 45. a7 {[%clk 0:00:08.8]} 45...
Rxh2 {[%clk 0:00:07.7]} 46. a8=Q {[%clk 0:00:07.1]} 46... Kg5 {[%clk 0:00:05.5]}
47. Qd8+ {[%clk 0:00:07.3]} 1-0

[Event "*** Titled Tuesday Blitz"]
[Site "Chess.com"]
[Date "2020.04.28"]
[Round "6"]
[White "skoularikii"]
[Black "Camels1981"]
[Result "1-0"]
[WhiteElo "2527"]
[BlackElo "2215"]
[TimeControl "180+1"]
[EndTime "11:07:45 PDT"]
[Termination "skoularikii won by resignation"]

1. e4 {[%clk 0:03:00.9]} 1... c5 {[%clk 0:02:58.7]} 2. Nf3 {[%clk 0:03:00.1]}
2... d6 {[%clk 0:02:57.4]} 3. Bb5+ {[%clk 0:02:59.3]} 3... Bd7 {[%clk
0:02:56.9]} 4. c4 {[%clk 0:02:58.7]} 4... g6 {[%clk 0:02:55.8]} 5. Nc3 {[%clk
0:02:56.9]} 5... Bg7 {[%clk 0:02:55.1]} 6. d4 {[%clk 0:02:57.6]} 6... cxd4
{[%clk 0:02:54.7]} 7. Nxd4 {[%clk 0:02:57.4]} 7... Nc6 {[%clk 0:02:55.3]} 8. Be3
{[%clk 0:02:53.8]} 8... Nf6 {[%clk 0:02:54.2]} 9. f3 {[%clk 0:02:48.8]} 9... O-O
{[%clk 0:02:52.9]} 10. Bxc6 {[%clk 0:02:45.6]} 10... bxc6 {[%clk 0:02:51.2]} 11.
O-O {[%clk 0:02:43.6]} 11... Qc7 {[%clk 0:02:48.9]} 12. Rc1 {[%clk 0:02:40.8]}
12... Rab8 {[%clk 0:02:48.5]} 13. Qd2 {[%clk 0:02:40.7]} 13... Rfc8 {[%clk
0:02:46.2]} 14. Rfd1 {[%clk 0:02:39.5]} 14... Qa5 {[%clk 0:02:45.8]} 15. Nde2
{[%clk 0:02:37.2]} 15... Be6 {[%clk 0:02:42.1]} 16. b3 {[%clk 0:02:35.7]} 16...
Nd7 {[%clk 0:02:41.9]} 17. Bg5 {[%clk 0:02:32.8]} 17... f6 {[%clk 0:02:36.9]}
18. Be3 {[%clk 0:02:32]} 18... Bf7 {[%clk 0:02:36.7]} 19. Nf4 {[%clk 0:02:29.1]}
19... Ne5 {[%clk 0:02:30]} 20. Nd3 {[%clk 0:02:27.6]} 20... Nxd3 {[%clk
0:02:29.1]} 21. Qxd3 {[%clk 0:02:27.8]} 21... Rd8 {[%clk 0:02:25.5]} 22. Na4
{[%clk 0:02:23.2]} 22... d5 {[%clk 0:02:22]} 23. exd5 {[%clk 0:02:22.6]} 23...
cxd5 {[%clk 0:02:22.1]} 24. c5 {[%clk 0:02:22.7]} 24... d4 {[%clk 0:02:22.2]}
25. c6 {[%clk 0:02:05.7]} 25... Qc7 {[%clk 0:01:12.1]} 26. Bd2 {[%clk
0:02:04.7]} 26... Rd6 {[%clk 0:01:10.7]} 27. Qa6 {[%clk 0:01:49.8]} 27... Rc8
{[%clk 0:01:07.8]} 28. Ba5 {[%clk 0:01:39.6]} 28... Rxc6 {[%clk 0:01:05.2]} 29.
Bxc7 {[%clk 0:01:11.3]} 29... Rxa6 {[%clk 0:01:04.5]} 30. Rxd4 {[%clk
0:01:10.5]} 30... e5 {[%clk 0:01:00.2]} 31. Rd8+ {[%clk 0:00:57]} 31... Rxd8
{[%clk 0:00:59.1]} 32. Bxd8 {[%clk 0:00:57.9]} 32... Be6 {[%clk 0:00:53]} 33.
Be7 {[%clk 0:00:53.8]} 33... Bd7 {[%clk 0:00:44.7]} 34. Nc5 {[%clk 0:00:49.4]}
34... Rc6 {[%clk 0:00:44.4]} 35. Rd1 {[%clk 0:00:34.7]} 35... Be8 {[%clk
0:00:43.7]} 36. Ne4 {[%clk 0:00:30.3]} 36... Kf7 {[%clk 0:00:43.2]} 37. Bc5
{[%clk 0:00:27]} 37... Ke6 {[%clk 0:00:35]} 38. Bxa7 {[%clk 0:00:26.6]} 38...
Rc2 {[%clk 0:00:30.8]} 39. Rd2 {[%clk 0:00:21.5]} 39... Rc1+ {[%clk 0:00:28.4]}
40. Kf2 {[%clk 0:00:21.9]} 40... Bh6 {[%clk 0:00:19.6]} 41. Rd6+ {[%clk
0:00:21.5]} 41... Ke7 {[%clk 0:00:19.1]} 42. Rxf6 {[%clk 0:00:19.5]} 42... Rc2+
{[%clk 0:00:16.1]} 43. Kg3 {[%clk 0:00:14.7]} 43... Rxa2 {[%clk 0:00:15.6]} 44.
Bc5+ {[%clk 0:00:14]} 44... Kd7 {[%clk 0:00:16.1]} 45. Rd6+ {[%clk 0:00:13.1]}
45... Kc7 {[%clk 0:00:15.5]} 46. Nf6 {[%clk 0:00:13.3]} 46... Bf4+ {[%clk
0:00:15.4]} 47. Kh3 {[%clk 0:00:13]} 47... Bc6 {[%clk 0:00:15.3]} 48. b4 {[%clk
0:00:11.8]} 48... Bb5 {[%clk 0:00:13.8]} 49. Nxh7 {[%clk 0:00:10.7]} 49... Bf1
{[%clk 0:00:13]} 50. Rxg6 {[%clk 0:00:10.8]} 50... Rc2 {[%clk 0:00:09.5]} 51.
Nf6 {[%clk 0:00:10.7]} 51... Rc3 {[%clk 0:00:08.7]} 52. Nd5+ {[%clk 0:00:10.5]}
1-0

[Event "*** Titled Tuesday Blitz"]
[Site "Chess.com"]
[Date "2020.04.28"]
[Round "6"]
[White "Qvalda"]
[Black "korbul"]
[Result "0-1"]
[WhiteElo "2406"]
[BlackElo "2598"]
[TimeControl "180+1"]
[EndTime "11:07:46 PDT"]
[Termination "korbul won on time"]

1. e4 {[%clk 0:02:57]} 1... c5 {[%clk 0:02:58]} 2. Nc3 {[%clk 0:02:55.3]} 2...
Nc6 {[%clk 0:02:57.2]} 3. Bb5 {[%clk 0:02:54.9]} 3... Nd4 {[%clk 0:02:56.3]} 4.
Nf3 {[%clk 0:02:54.1]} 4... Nxb5 {[%clk 0:02:56.3]} 5. Nxb5 {[%clk 0:02:55]}
5... d6 {[%clk 0:02:56.6]} 6. d4 {[%clk 0:02:54.3]} 6... cxd4 {[%clk 0:02:56.2]}
7. Qxd4 {[%clk 0:02:53.6]} 7... a6 {[%clk 0:02:56.1]} 8. Nc3 {[%clk 0:02:52.3]}
8... e5 {[%clk 0:02:55.9]} 9. Qd3 {[%clk 0:02:51.9]} 9... h6 {[%clk 0:02:55.8]}
10. O-O {[%clk 0:02:51.4]} 10... Nf6 {[%clk 0:02:55.5]} 11. h3 {[%clk
0:02:41.9]} 11... Be7 {[%clk 0:02:55.1]} 12. a4 {[%clk 0:02:31]} 12... b6 {[%clk
0:02:53.7]} 13. Nd5 {[%clk 0:02:12.9]} 13... Nxd5 {[%clk 0:02:46]} 14. Qxd5
{[%clk 0:02:13.8]} 14... Rb8 {[%clk 0:02:40.6]} 15. Be3 {[%clk 0:01:57.1]} 15...
O-O {[%clk 0:02:39.4]} 16. Rfd1 {[%clk 0:01:56]} 16... Bb7 {[%clk 0:02:31.9]}
17. Qd3 {[%clk 0:01:55.4]} 17... Qc7 {[%clk 0:02:31.5]} 18. c4 {[%clk
0:01:46.6]} 18... Qc6 {[%clk 0:02:27.2]} 19. Nd2 {[%clk 0:01:34.3]} 19... Bc8
{[%clk 0:02:11]} 20. b4 {[%clk 0:01:15.7]} 20... Be6 {[%clk 0:02:04.8]} 21. b5
{[%clk 0:01:08.7]} 21... Qb7 {[%clk 0:02:04.2]} 22. Rab1 {[%clk 0:00:50.3]}
22... a5 {[%clk 0:02:03.9]} 23. Rbc1 {[%clk 0:00:49.4]} 23... Qc7 {[%clk
0:02:03]} 24. f3 {[%clk 0:00:46.7]} 24... Rfc8 {[%clk 0:01:58.3]} 25. Rc2 {[%clk
0:00:40]} 25... Qd7 {[%clk 0:01:50.2]} 26. Rdc1 {[%clk 0:00:25]} 26... Kh8
{[%clk 0:01:46.8]} 27. Nf1 {[%clk 0:00:20.4]} 27... f5 {[%clk 0:01:44.3]} 28.
Bf2 {[%clk 0:00:18.7]} 28... fxe4 {[%clk 0:01:41.2]} 29. fxe4 {[%clk 0:00:18.1]}
29... Rf8 {[%clk 0:01:36.1]} 30. Ne3 {[%clk 0:00:17.8]} 30... Bg5 {[%clk
0:01:35]} 31. Rf1 {[%clk 0:00:15.2]} 31... Bxe3 {[%clk 0:01:26.9]} 32. Bxe3
{[%clk 0:00:16.1]} 32... Rxf1+ {[%clk 0:01:26]} 33. Qxf1 {[%clk 0:00:17]} 33...
Qe7 {[%clk 0:01:20.5]} 34. Rf2 {[%clk 0:00:13.6]} 34... Kh7 {[%clk 0:01:17.6]}
35. Kh2 {[%clk 0:00:11.9]} 35... Rc8 {[%clk 0:01:15.5]} 36. Rc2 {[%clk
0:00:09.9]} 36... Qh4 {[%clk 0:01:09.6]} 37. Bxb6 {[%clk 0:00:03.6]} 37... Qxe4
{[%clk 0:01:06.9]} 38. Qe2 {[%clk 0:00:03.5]} 38... Qf4+ {[%clk 0:01:05.6]} 39.
g3 {[%clk 0:00:03.5]} 39... Qf5 {[%clk 0:01:04.4]} 40. Bxa5 {[%clk 0:00:03.2]}
40... Qxh3+ {[%clk 0:01:02.2]} 41. Kg1 {[%clk 0:00:03.7]} 41... Qxg3+ {[%clk
0:01:00]} 42. Qg2 {[%clk 0:00:04]} 42... Qe3+ {[%clk 0:00:57.1]} 43. Qf2 {[%clk
0:00:03.6]} 43... Qg5+ {[%clk 0:00:56.6]} 44. Qg2 {[%clk 0:00:04]} 44... Qf5
{[%clk 0:00:56.7]} 45. Qf2 {[%clk 0:00:03.6]} 45... Qe4 {[%clk 0:00:54.8]} 46.
Qg2 {[%clk 0:00:03]} 46... Qd3 {[%clk 0:00:51.4]} 47. Qe2 {[%clk 0:00:02.7]}
47... Qb3 {[%clk 0:00:48]} 48. Be1 {[%clk 0:00:01.8]} 48... Bf5 {[%clk
0:00:40.6]} 49. Rc3 {[%clk 0:00:01.9]} 49... Qb1 {[%clk 0:00:38.3]} 50. Rg3
{[%clk 0:00:01.3]} 50... Bg6 {[%clk 0:00:35.5]} 51. Rg2 {[%clk 0:00:01.5]} 51...
Rf8 {[%clk 0:00:33.4]} 52. Kh2 {[%clk 0:00:01.7]} 52... Rf5 {[%clk 0:00:32.3]}
53. Bg3 {[%clk 0:00:01.6]} 53... Rh5+ {[%clk 0:00:30.6]} 54. Bh4 {[%clk
0:00:01.3]} 54... Rxh4+ {[%clk 0:00:30.1]} 55. Kg3 {[%clk 0:00:01.7]} 55... Rf4
{[%clk 0:00:29.8]} 56. c5 {[%clk 0:00:01.5]} 56... Qf5 {[%clk 0:00:28.6]} 57.
cxd6 {[%clk 0:00:01.2]} 57... Bh5 {[%clk 0:00:28.4]} 0-1

[Event "*** Titled Tuesday Blitz"]
[Site "Chess.com"]
[Date "2020.04.28"]
[Round "6"]
[White "SharapovEvgeny"]
[Black "Balla_Tamas"]
[Result "0-1"]
[WhiteElo "2317"]
[BlackElo "2546"]
[TimeControl "180+1"]
[EndTime "11:07:47 PDT"]
[Termination "Balla_Tamas won on time"]

1. e4 {[%clk 0:02:59.6]} 1... c5 {[%clk 0:02:54.8]} 2. Nf3 {[%clk 0:02:58.7]}
2... e6 {[%clk 0:02:54.5]} 3. d4 {[%clk 0:02:58.5]} 3... cxd4 {[%clk 0:02:54.4]}
4. Nxd4 {[%clk 0:02:55.9]} 4... a6 {[%clk 0:02:55]} 5. Bd3 {[%clk 0:02:54.4]}
5... Bc5 {[%clk 0:02:53.4]} 6. Nb3 {[%clk 0:02:05.6]} 6... Ba7 {[%clk
0:02:51.6]} 7. O-O {[%clk 0:02:04.7]} 7... d6 {[%clk 0:02:50.2]} 8. c4 {[%clk
0:02:04.1]} 8... Nf6 {[%clk 0:02:49.6]} 9. Nc3 {[%clk 0:02:03.3]} 9... O-O
{[%clk 0:02:48]} 10. Qe2 {[%clk 0:02:02.5]} 10... Nbd7 {[%clk 0:02:36.6]} 11.
Be3 {[%clk 0:02:01.2]} 11... Ne5 {[%clk 0:02:33.6]} 12. Rad1 {[%clk 0:01:58.5]}
12... Qc7 {[%clk 0:02:27.4]} 13. Bxa7 {[%clk 0:01:53]} 13... Rxa7 {[%clk
0:02:26.9]} 14. f4 {[%clk 0:01:48.1]} 14... Nxd3 {[%clk 0:02:21.1]} 15. Qxd3
{[%clk 0:01:47.3]} 15... Ne8 {[%clk 0:02:18.4]} 16. Rd2 {[%clk 0:01:41.9]} 16...
b6 {[%clk 0:02:17.5]} 17. Rfd1 {[%clk 0:01:40.8]} 17... Bb7 {[%clk 0:02:15.4]}
18. Nd4 {[%clk 0:01:36.5]} 18... Ba8 {[%clk 0:02:13]} 19. Kh1 {[%clk 0:01:34.3]}
19... Qc5 {[%clk 0:01:52.1]} 20. b3 {[%clk 0:01:31.2]} 20... Rd7 {[%clk
0:01:47.7]} 21. Na4 {[%clk 0:01:28.5]} 21... Qc7 {[%clk 0:01:47]} 22. Qe3 {[%clk
0:01:27.3]} 22... Nf6 {[%clk 0:01:43]} 23. Nc3 {[%clk 0:01:23.6]} 23... Rfd8
{[%clk 0:01:39.2]} 24. h3 {[%clk 0:01:21.6]} 24... Qc5 {[%clk 0:01:24.4]} 25.
Re1 {[%clk 0:01:17.3]} 25... Rc8 {[%clk 0:01:19]} 26. Na4 {[%clk 0:01:10.8]}
26... Qc7 {[%clk 0:01:18.5]} 27. Nc3 {[%clk 0:00:59.8]} 27... b5 {[%clk
0:01:14.9]} 28. e5 {[%clk 0:00:56.7]} 28... dxe5 {[%clk 0:01:12.1]} 29. fxe5
{[%clk 0:00:53.3]} 29... Ne8 {[%clk 0:01:08.8]} 30. Red1 {[%clk 0:00:46.8]}
30... Re7 {[%clk 0:01:03.3]} 31. Ne4 {[%clk 0:00:34.6]} 31... bxc4 {[%clk
0:00:59.7]} 32. Nd6 {[%clk 0:00:31]} 32... Rd8 {[%clk 0:00:37.7]} 33. Nxc4
{[%clk 0:00:28.4]} 33... Bd5 {[%clk 0:00:36.2]} 34. Nf5 {[%clk 0:00:25.1]} 34...
Red7 {[%clk 0:00:32.5]} 35. Nfd6 {[%clk 0:00:23]} 35... Nxd6 {[%clk 0:00:32.7]}
36. Nxd6 {[%clk 0:00:20.8]} 36... Rxd6 {[%clk 0:00:31.5]} 37. exd6 {[%clk
0:00:19.8]} 37... Qxd6 {[%clk 0:00:32.2]} 38. Kg1 {[%clk 0:00:17.8]} 38... h6
{[%clk 0:00:32.2]} 39. Qf2 {[%clk 0:00:17.1]} 39... Rc8 {[%clk 0:00:31.2]} 40.
Rc2 {[%clk 0:00:15.8]} 40... Rd8 {[%clk 0:00:30.1]} 41. Rdc1 {[%clk 0:00:14.9]}
41... Kh7 {[%clk 0:00:26.7]} 42. Rc3 {[%clk 0:00:13]} 42... Rd7 {[%clk
0:00:26.4]} 43. Qc2+ {[%clk 0:00:12]} 43... g6 {[%clk 0:00:25.8]} 44. Qf2 {[%clk
0:00:10.8]} 44... Qe5 {[%clk 0:00:25.3]} 45. Qe3 {[%clk 0:00:10.3]} 45... Qf5
{[%clk 0:00:23.7]} 46. Qf2 {[%clk 0:00:10]} 46... Qg5 {[%clk 0:00:23.5]} 47. h4
{[%clk 0:00:08.3]} 47... Qe7 {[%clk 0:00:22.7]} 48. h5 {[%clk 0:00:07.5]} 48...
gxh5 {[%clk 0:00:22.1]} 49. Rg3 {[%clk 0:00:05.1]} 49... f5 {[%clk 0:00:21.2]}
50. Re1 {[%clk 0:00:03.8]} 50... Qf6 {[%clk 0:00:21.1]} 51. Qf4 {[%clk
0:00:02.7]} 51... Rg7 {[%clk 0:00:21.3]} 52. Rxg7+ {[%clk 0:00:01.3]} 52... Kxg7
{[%clk 0:00:21.9]} 0-1